Cogmind - Beta 16 @@@ ROGUE MODE // 2025.12.04 @ 16:45:04 Player: Grem Result: Destroyed by P-60 Hacker with Shock Rifle Performance ------------- Evolutions (3) 1500 Regions Visited (8) 1600 Robots Destroyed (46) 230 Value Destroyed (1706) 1706 Prototype IDs (4) 80 Alien Tech Used (0) 0 Bonus (709) 709 TOTAL SCORE: 5825 Bonus ------- Pacifist 564 High Alert Combat Kills 16 Follower Combat Kills 144 Friendly Fire -15 Cogmind --------- Core Integrity 0/700 Matter 300/300 Energy 99/100 System Corruption 11% Temperature Cool (0) Movement Core (50) Location -7/Factory Parts ------- > --- POWER (2) -------- (None) > --- PROPULSION (4) --- (None) > --- UTILITY (4) ------ (None) > --- WEAPON (3) ------- (None) > --- INVENTORY (5) ---- Improved Melee Analysis Suite Improved Light Armor Plating Peak State ------------ > --- POWER ------------ Enhanced Nuclear Core Enhanced Nuclear Core > --- PROPULSION ------- Light Treads Aluminum Leg Improved Aluminum Leg > --- UTILITY ---------- High-capacity Matter Pod Improved Targeting Computer Powered Armor Recalibrator > --- WEAPON ----------- Precision Beam Rifle Improved EM Pulse Cannon Powered Hammer > --- INVENTORY -------- Light Nuclear Core Hardened Medium Armor Plating Improved Light Armor Plating Powered Armor [Rating: 38] Favorites ----------- Power Enhanced Nuclear Core Engine Ion Engine Power Core Enhanced Nuclear Core Propulsion Light Treads Treads Light Treads Leg Aluminum Leg Wheel Wheel Flight Unit Flight Unit Utility High-capacity Matter Pod Device Shield Generator Storage High-capacity Matter Pod Processor Improved Targeting Computer Hackware System Shield Protection Powered Armor Weapon Powered Hammer Energy Gun Precision Beam Rifle Energy Cannon Improved EM Pulse Cannon Ballistic Gun Assault Rifle Ballistic Cannon Improved Light Cannon Launcher Rocket Launcher Impact Weapon Powered Hammer Build | -11 -10 -9 -9 -9 -8 -8 -8 -7 ------- Run | Yrd Mat Mat Min Exi Min Mat Sto Fac Slots Evolved 6 | . . 2 . . . 2 . 2 Power 1 | . . 1 . . . . . . Propulsion 2 | . . . . . . 1 . 1 Utility 2 | . . 1 . . . 1 . . Weapon 1 | . . . . . . . . 1 Parts Attached 44 | 5 7 4 . 2 . 13 5 8 Power 8 | 1 1 1 . . . 3 . 2 Engine 4 | 1 1 1 . . . . . 1 Core 4 | . . . . . . 3 . 1 Reactor . | . . . . . . . . . Propulsion 9 | 2 2 . . . . 1 3 1 Treads 4 | 2 . . . . . . 2 . Leg 2 | . . . . . . . 1 1 Wheel 1 | . . . . . . 1 . . Hover . | . . . . . . . . . Flight 2 | . 2 . . . . . . . Utility 15 | . 2 3 . 2 . 3 1 4 Device 5 | . 2 1 . . . 1 . 1 Storage 2 | . . . . 2 . . . . Processor 2 | . . 1 . . . 1 . . Hackware 1 | . . . . . . 1 . . Protection 5 | . . 1 . . . . 1 3 Artifact . | . . . . . . . . . Weapon 12 | 2 2 . . . . 6 1 1 Energy Gun 2 | . . . . . . 1 1 . Energy Cannon 1 | . . . . . . . . 1 Ballistic Gun 3 | 2 . . . . . 1 . . Ballistic Cannon 2 | . 2 . . . . . . . Launcher 2 | . . . . . . 2 . . Special Weapon . | . . . . . . . . . Impact Weapon 2 | . . . . . . 2 . . Slashing Weapon . | . . . . . . . . . Piercing Weapon . | . . . . . . . . . Special Melee Weapon . | . . . . . . . . . Unidentified Prototypes 4 | . . . . . . 2 1 1 Parts Lost 21 | . . . . . . 2 . 19 Power 3 | . . . . . . . . 3 Propulsion 5 | . . . . . . 1 . 4 Utility 8 | . . . . . . 1 . 7 Weapon 5 | . . . . . . . . 5 Highest Loss Streak 6 | . . . . . . 1 . 6 To Critical Strikes . | . . . . . . . . . Average Backups 4 | . 2 4 5 3 4 4 5 4 Power . | . 1 . . . . . 1 . Propulsion . | . . 2 2 2 2 . . . Utility 1 | . . . 1 1 2 . . 2 Weapon 1 | . . 1 2 . . 3 4 1 Tool/Special . | . . . . . . . . . Unused Backups 3 | . . . . . . 1 1 1 Power . | . . . . . . . . . Propulsion . | . . . . . . . . . Utility 1 | . . . . . . . . 1 Weapon 2 | . . . . . . 1 1 . Tool/Special . | . . . . . . . . . Average Slot Usage (%) 84 | . 80 59 55 81 88 87 91 81 Engine 2 | . 14 11 11 11 11 . . . Core 11 | . . . . . . 17 17 13 Treads 14 | . 24 . . 19 22 17 16 10 Leg 4 | . . . . . . . 7 8 Device 8 | . 9 20 22 22 22 13 . 3 Storage 7 | . . . . 9 11 9 9 6 Processor 4 | . . 2 . . . 3 9 6 Hackware 3 | . . . . . . 7 9 2 Protection 3 | . . . . . . . 3 6 Energy Gun 1 | . . . . . . 2 5 1 Ballistic Gun 1 | . 24 . . . . . . . Ballistic Cannon 4 | . 3 5 . 17 22 3 . . Launcher 4 | . . . . . . 2 3 8 Impact Weapon 5 | . . . . . . 8 9 6 Peak Build Rating 38 | 5 10 11 6 11 11 30 29 38 Average Rating 24 | 4 6 7 6 9 11 27 27 31 On Entrance 11 | . 5 10 6 6 11 11 25 29 Avg Prop Armor Cover (%) 5 | . . . . . . . 6 4 Naked Turns 38 | . . . . . . . . 38 Heaviest Build 47 | 6 16 17 8 20 19 32 30 47 Greatest Support 40 | 40 40 8 8 40 40 40 40 40 Greatest Overweight (x) 12 | . 1 5 . . . 2 2 12 Average Overweight (x) . | . . . . . . . . . Largest Inventory Capacity 5 | 5 5 5 5 5 5 5 5 5 Average Capacity 5 | 5 5 5 5 5 5 5 5 5 Most Carried 5 | 1 5 5 5 5 4 5 5 5 Average Carried 4 | . 2 4 5 3 4 4 4 4 Final Capacity 5 | 5 5 5 5 5 5 5 5 5 Final Carried 5 | 1 5 5 5 4 4 5 5 2 Class Distribution -------------------- 96% | Mutant 3% | Commander-Mutant Dominant Class ---------------- Mutant | -10/Materials Mutant | -9/Materials Mutant | -9/Mines Mutant | -9/Exiles Mutant | -8/Mines Mutant | -8/Materials Mutant | -8/Storage Mutant | -7/Factory Resources | -11 -10 -9 -9 -9 -8 -8 -8 -7 ----------- Run | Yrd Mat Mat Min Exi Min Mat Sto Fac Matter Collected 1128 | 215 105 . . 210 . 111 152 335 Remotely . | . . . . . . . . . Salvage Created 1610 | . . . . . . 374 116 1120 Parts 74 | . . . . . . 18 5 51 Haulers Intercepted 1 | . . . . . . . . 1 Recyclers Shooed . | . . . . . . . . . Parts Field Recycled . | . . . . . . . . . Retrieved Matter . | . . . . . . . . . Parts Self-Destructed . | . . . . . . . . . Prevented . | . . . . . . . . . Parts Restored . | . . . . . . . . . Kills | -11 -10 -9 -9 -9 -8 -8 -8 -7 ------- Run | Yrd Mat Mat Min Exi Min Mat Sto Fac Combat Hostiles Destroyed 33 | . . . . . . 8 4 21 Melee 7 | . . . . . . 1 . 6 Guns 3 | . . . . . . 1 . 2 Cannons 3 | . . . . . . . . 3 AOE 16 | . . . . . . 4 4 8 Classes Destroyed 9 | . . . . . . 3 1 5 Worker 5 | . . . . . . . . 5 Builder 5 | . . . . . . 2 . 3 Hauler 1 | . . . . . . . . 1 Watcher 2 | . . . . . . . . 2 Swarmer 5 | . . . . . . . 1 4 Grunt 16 | . . . . . . 5 1 10 Sentry 8 | . . . . . . 3 2 3 Specialist 2 | . . . . . . . . 2 Programmer 2 | . . . . . . . . 2 Best Kill Streak 9 | . . . . . . 5 3 9 Combat Bots Only 5 | . . . . . . 3 3 5 Max Kills in Single Turn 6 | . . . . . . 2 2 6 Gunslinging . | . . . . . . . . . Exploded 3 | . . . . . . 2 2 3 Melee 1 | . . . . . . 1 . 1 Uniques/NPCs Destroyed . | . . . . . . . . . Combat | -11 -10 -9 -9 -9 -8 -8 -8 -7 -------- Run | Yrd Mat Mat Min Exi Min Mat Sto Fac Hostile Shots Fired 356 | . . 22 . . . 49 17 268 Missed 130 | . . 10 . . . 11 8 101 Hits 226 | . . 12 . . . 38 9 167 Melee 4 | . . . . . . . . 4 Projectile 222 | . . 12 . . . 38 9 163 Critical Strikes 8 | . . . . . . . . 8 Damage Taken 3695 | . . 112 . . . 562 121 2900 Core 883 | . . 56 . . . 91 24 712 Absorbed by Shields 138 | . . 45 . . . 93 . . Regen/Repaired (Parts) 263 | . . . . . . . 55 208 Core Remaining (%) 91 | 100 100 . . . 86 . 79 . Volleys Fired 51 | . . . . . . 6 10 35 Largest 2 | . . . . . . 1 1 2 Hottest 130 | . . . . . . 36 61 130 Shots Fired 75 | . . . . . . 6 10 59 Gun 26 | . . . . . . 2 6 18 Cannon 24 | . . . . . . . . 24 Launcher 25 | . . . . . . 4 4 17 Special . | . . . . . . . . . Kinetic 2 | . . . . . . 2 . . Thermal 24 | . . . . . . . 6 18 Explosive 16 | . . . . . . 3 4 9 Electromagnetic 33 | . . . . . . 1 . 32 Robot Hit Streak 19 | . . . . . . 3 7 19 Robot Miss Streak 4 | . . . . . . . 1 4 Penetration Max . | . . . . . . . . . Secondary Targets . | . . . . . . . . . Shots Hit Robots 84 | . . . . . . 13 8 63 Core Hits 72 | . . . . . . 13 13 46 Critical Kills 3 | . . . . . . . . 3 Critical Parts Destroyed 5 | . . . . . . 2 . 3 Critical Strikes 10 | . . . . . . 2 1 7 Burn 2 | . . . . . . . 1 1 Smash 8 | . . . . . . 2 . 6 Melee Attacks 51 | . . . . . . 16 1 34 Impact 51 | . . . . . . 16 1 34 Slashing . | . . . . . . . . . Piercing . | . . . . . . . . . Sneak Attacks 5 | . . . . . . 1 1 3 Combat Hostiles . | . . . . . . . . . Follow-up Attacks . | . . . . . . . . . Damage Inflicted 4949 | . . . . . 7 790 387 3765 Guns 345 | . . . . . . 32 67 246 Cannons 453 | . . . . . . . . 453 Explosions 2522 | . . . . . . 295 244 1983 Melee 1622 | . . . . . . 463 76 1083 Ramming 7 | . . . . . 7 . . . Kinetic 32 | . . . . . . 32 . . Thermal 1443 | . . . . . . . 67 1376 Explosive 960 | . . . . . . 275 244 441 Electromagnetic 885 | . . . . . . 20 . 865 Impact 1622 | . . . . . . 463 76 1083 Slashing . | . . . . . . . . . Piercing . | . . . . . . . . . Highest Corruption 11 | . . . . . . . 2 11 Average Corruption 2 | . . . . . . . 2 2 Corruption Purged . | . . . . . . . . . Corruption Blocked . | . . . . . . . . . Effects 24 | . . . . . . . 7 17 Message Errors 6 | . . . . . . . 2 4 Matter Fused 3 | . . . . . . . 2 1 Heat Flow Errors 2 | . . . . . . . . 2 Energy Discharges 4 | . . . . . . . 1 3 Data Loss (minor) 3 | . . . . . . . . 3 Data Loss (major) 3 | . . . . . . . 2 1 Alerts 2 | . . . . . . . . 2 Weapon Failures 1 | . . . . . . . . 1 Overload Shots . | . . . . . . . . . Overflow Damage 766 | . . . . . . 180 36 550 Projectiles . | . . . . . . . . . Explosions 192 | . . . . . . . . 192 Melee 574 | . . . . . . 180 36 358 Knockbacks 8 | . . . . . . 3 . 5 Impact 8 | . . . . . . 3 . 5 Kinetic . | . . . . . . . . . Secondary . | . . . . . . . . . Self-Inflicted Damage 218 | . . . . . . 56 . 162 Shots 8 | . . . . . . 1 . 7 Rammed 1 | . . . . . 1 . . . Targets Rammed 1 | . . . . . 1 . . . Kicked . | . . . . . . . . . Crushed . | . . . . . . . . . Highest Temperature 668 | . . . . . . 17 30 668 Average Temperature 140 | . . . . . . 6 14 169 Received Heat Transfer 659 | . . 50 . . . 246 36 327 Effects 13 | . . . . . . . . 13 Shutdowns 6 | . . . . . . . . 6 Energy Bleed 2 | . . . . . . . . 2 Interference 1 | . . . . . . . . 1 Matter Decay 1 | . . . . . . . . 1 Short Circuit 1 | . . . . . . . . 1 Damage (minor) 2 | . . . . . . . . 2 Siege Activations . | . . . . . . . . . Martial Activations . | . . . . . . . . . Shielding Activations . | . . . . . . . . . Robots Disrupted . | . . . . . . . . . Combat Hostiles . | . . . . . . . . . Robots Corrupted 5 | . . . . . . 2 . 3 Combat Hostiles 4 | . . . . . . 2 . 2 Parts Fried 16 | . . . . . . 8 . 8 Impact Corruptions 22 | . . . . . . 7 1 14 Robots Melted . | . . . . . . . . . Combat Hostiles . | . . . . . . . . . Parts Melted 1 | . . . . . . . . 1 Heat Transferred 1664 | . . . . . . . 222 1442 Parts Sabotaged . | . . . . . . . . . Parts Stolen . | . . . . . . . . . Parts Stripped . | . . . . . . . . . Power Chain Reactions 5 | . . . . . . 1 . 4 Alert | -11 -10 -9 -9 -9 -8 -8 -8 -7 ------- Run | Yrd Mat Mat Min Exi Min Mat Sto Fac Maximum Alert Level 2 | . . . . . . . 1 2 Low Security (%) 71 | 100 100 100 100 . 100 100 85 46 Level 1 28 | . . . . . . . 14 52 Level 2 . | . . . . . . . . . Level 3 . | . . . . . . . . . Level 4 . | . . . . . . . . . Level 5 . | . . . . . . . . . High Security . | . . . . . . . . . Max Security . | . . . . . . . . . Peak Influence 414 | . . . . . . 100 250 414 Initial 98 | . . . . . . . 34 98 Average 110 | . . . . . . 16 72 191 Influence Increases 1530 | . . . . . . 292 352 886 Destroy 0b10 Robot/C 740 | . . . . . . 160 140 440 Destroy 0b10 Robot/NC 65 | . . . . . . 10 . 55 Destroy Leader 196 | . . . . . . 30 70 96 Allied During Kill 67 | . . . . . . . 63 4 Successful Hack 61 | . . . . . . 14 38 9 Disable Machine 165 | . . . . . . 30 30 105 Destroy Structure 161 | . . . . . . 48 11 102 Lose Combat Pursuer 75 | . . . . . . . . 75 Influence Decreases 1190 | . . . . . . 210 216 764 Entered New Map 168 | . . . . . . . 48 120 Time Decay 822 | . . . . . . 200 168 454 Lost Part 200 | . . . . . . 10 . 190 Squads Dispatched 16 | . 1 . . . . 1 5 9 Investigation . | . . . . . . . . . Extermination 3 | . . . . . . . . 3 Reinforcement 7 | . 1 . . . . 1 2 3 Assault . | . . . . . . . . . Garrison 6 | . . . . . . . 3 3 Intercept . | . . . . . . . . . Searches Triggered . | . . . . . . . . . Construction Impeded 1 | . . . . . . . . 1 Haulers Reinforced . | . . . . . . . . . Active Scanning Responses . | . . . . . . . . . Cargo Convoy Interrupts . | . . . . . . . . . Stealth | -11 -10 -9 -9 -9 -8 -8 -8 -7 --------- Run | Yrd Mat Mat Min Exi Min Mat Sto Fac Distress Signals 4 | . . . . . . 2 1 1 Communications Jammed . | . . . . . . . . . Distress Signals . | . . . . . . . . . Times Spotted 81 | . . 8 . . . 16 19 38 Peak Tracking Total 8 | . . 8 . . . 6 5 7 Tactical Retreats 5 | . . . . . . . . 5 Traps | -11 -10 -9 -9 -9 -8 -8 -8 -7 ------- Run | Yrd Mat Mat Min Exi Min Mat Sto Fac Traps Triggered 3 | . . . . . . . 1 2 Indirectly 1 | . . . . . . . . 1 Trap Hack Attempts . | . . . . . . . . . Triggered . | . . . . . . . . . Disarmed . | . . . . . . . . . Reprogrammed . | . . . . . . . . . Reused . | . . . . . . . . . Traps Extracted . | . . . . . . . . . Installed . | . . . . . . . . . Triggered . | . . . . . . . . . Machines | -11 -10 -9 -9 -9 -8 -8 -8 -7 ---------- Run | Yrd Mat Mat Min Exi Min Mat Sto Fac Machines Disabled 11 | . . . . . . 2 2 7 Max in Single Turn 5 | . . . . . . 2 2 5 Machines Repaired . | . . . . . . . . . Machines Dismantled . | . . . . . . . . . Machines Sabotaged . | . . . . . . . . . Overloaded Fab Kills . | . . . . . . . . . Hacking | -11 -10 -9 -9 -9 -8 -8 -8 -7 --------- Run | Yrd Mat Mat Min Exi Min Mat Sto Fac Machines Accessed 9 | . . . . 1 . 2 4 2 Terminals 4 | . . . . . . 1 3 . Fabricators . | . . . . . . . . . Repair Stations 2 | . . . . . . . 1 1 Recycling Units 1 | . . . . . . 1 . . Scanalyzers 1 | . . . . . . . . 1 Garrison Access . | . . . . . . . . . Total Hacks 60 | . . . . 23 . 7 18 12 Successful 46 | . . . . 23 . 6 8 9 Failed 14 | . . . . . . 1 10 3 Catastrophic 1 | . . . . . . . 1 . Database Lockouts . | . . . . . . . . . Manual 2 | . . . . . . . 2 . Terminals 13 | . . . . . . 2 11 . Fabricators . | . . . . . . . . . Repair Stations 16 | . . . . . . . 7 9 Recycling Units 5 | . . . . . . 5 . . Scanalyzers 3 | . . . . . . . . 3 Garrison Access . | . . . . . . . . . Terminal Hacks 29 | . . . . 23 . 1 5 . Record 25 | . . . . 23 . . 2 . Part Schematic 1 | . . . . . . . 1 . Open Door 1 | . . . . . . . 1 . Recall Investigation 1 | . . . . . . . 1 . Zone Layout 1 | . . . . . . 1 . . Fabricator Hacks . | . . . . . . . . . Repair Station Hacks 11 | . . . . . . . 3 8 Scan Component 6 | . . . . . . . 2 4 Repair 5 | . . . . . . . 1 4 Recycling Unit Hacks 5 | . . . . . . 5 . . Recycle Component 1 | . . . . . . 1 . . Process 4 | . . . . . . 4 . . Scanalyzer 1 | . . . . . . . . 1 Insert Component 1 | . . . . . . . . 1 Garrison Access Hacks . | . . . . . . . . . Unauthorized Hacks . | . . . . . . . . . Terminals . | . . . . . . . . . Fabricators . | . . . . . . . . . Repair Stations . | . . . . . . . . . Recycling Units . | . . . . . . . . . Scanalyzers . | . . . . . . . . . Garrison Access . | . . . . . . . . . Data Cores Recovered . | . . . . . . . . . Used . | . . . . . . . . . Hacking Detections 7 | . . . . . . 2 3 2 Full Trace Events 1 | . . . . . . . 1 . Feedback Events . | . . . . . . . . . Feedback Blocked . | . . . . . . . . . Robot Schematics Acquired . | . . . . . . . . . Robots Built . | . . . . . . . . . Authchips . | . . . . . . . . . Time . | . . . . . . . . . Total Robot Build Rating . | . . . . . . . . . Part Schematics Acquired 1 | . . . . . . . 1 . Parts Built . | . . . . . . . . . Authchips . | . . . . . . . . . Time . | . . . . . . . . . Total Part Build Rating . | . . . . . . . . . Part Studies Acquired . | . . . . . . . . . Parts Repaired 5 | . . . . . . . 1 4 Time 233 | . . . . . . . 35 198 Parts Recycled 1 | . . . . . . 1 . . Recycled Matter 350 | . . . . . . 350 . . Retrieved Matter . | . . . . . . . . . Retrieved Components . | . . . . . . . . . Parts Scanalyzed 1 | . . . . . . . . 1 Part Schematics Acquired . | . . . . . . . . . Parts Damaged 1 | . . . . . . . . 1 Bothacking | -11 -10 -9 -9 -9 -8 -8 -8 -7 ------------ Run | Yrd Mat Mat Min Exi Min Mat Sto Fac Used RIF Installer . | . . . . . . . . . Robots Hacked . | . . . . . . . . . Non-combat . | . . . . . . . . . Combat . | . . . . . . . . . Robot Hacks Applied . | . . . . . . . . . Relay Couplers Released . | . . . . . . . . . Fabnet Peak Effective % . | . . . . . . . . . Robots Rewired . | . . . . . . . . . Allies Hacked 1 | . . . . . . . . 1 Hacks Repelled 1 | . . . . . . . . 1 Allies | -11 -10 -9 -9 -9 -8 -8 -8 -7 -------- Run | Yrd Mat Mat Min Exi Min Mat Sto Fac Total Allies 10 | . . . . . . . 10 . Largest Group 10 | . . . . . . . 10 2 Highest-Rated Group 173 | . . . . . . . 173 32 Highest-Rated Ally 29 | . . . . . . . 29 16 Total Orders . | . . . . . . . . . Ally Attacks 35 | . . . . . . . 18 17 Total Damage 339 | . . . . . . . 210 129 Kills 4 | . . . . . . . 3 1 Allies Corrupted . | . . . . . . . . . Allies Melted . | . . . . . . . . . Intel | -11 -10 -9 -9 -9 -8 -8 -8 -7 ------- Run | Yrd Mat Mat Min Exi Min Mat Sto Fac Active Infowar (turns) 1359 | . 87 69 5 529 237 432 . . Terrain 1359 | . 87 69 5 529 237 432 . . Robot Analysis Total . | . . . . . . . . . Derelict Logs Recovered . | . . . . . . . . . Drone Launches . | . . . . . . . . . Drone Recoveries . | . . . . . . . . . Exploration | -11 -10 -9 -9 -9 -8 -8 -8 -7 ------------- Run | Yrd Mat Mat Min Exi Min Mat Sto Fac Turns Passed 4319 | 66 156 73 5 529 237 753 624 1876 Spaces Moved 2309 | 43 90 105 13 443 148 389 359 719 Core 114 | 9 . 1 . . . . . 104 Treads 1625 | 34 80 . . 291 148 388 294 390 Legs 231 | . . . . . . . 6 225 Wheels 60 | . . . . . . 1 59 . Hover . | . . . . . . . . . Flight 279 | . 10 104 13 152 . . . . Fastest Speed 37 | 50 117 37 37 37 160 110 110 50 Average Speed 156 | 136 155 43 37 117 160 160 153 199 Slowest Speed 650 | 160 160 300 37 160 160 240 260 650 Overloaded Moves . | . . . . . . . . . Propulsion Burnouts . | . . . . . . . . . Robots Hopped 1 | . . 1 . . . . . . Potential Cave-ins . | . . . . . . . . . Cave-ins Triggered . | . . . . . . . . . Exploration Rate (%) 30 | 3 25 13 8 80 44 25 58 21 Regions Visited 8 Branch Regions 4 Pre-discovered Areas 1 | . . . . 1 . . . . Known Exits Taken . | . . . . . . . . . Unknown Exits Taken 8 | 1 1 1 1 1 1 1 1 . Scrap Searched . | . . . . . . . . . Spaces Dug . | . . . . . . . . . Terrain Destroyed 185 | . . . . . . 56 13 116 Melee . | . . . . . . . . . Projectile . | . . . . . . . . . AOE 185 | . . . . . . 56 13 116 Terrain Rammed . | . . . . . . . . . Walls Destroyed . | . . . . . . . . . Machines Disabled . | . . . . . . . . . Actions | -11 -10 -9 -9 -9 -8 -8 -8 -7 --------- Run | Yrd Mat Mat Min Exi Min Mat Sto Fac Total 2830 | 48 103 134 12 449 148 481 418 1037 Wait 301 | . . 11 . . . 28 38 224 Move 2299 | 42 89 102 12 442 147 388 358 719 Hop 1 | . . 1 . . . . . . Pick Up 20 | 1 4 1 . . . 9 1 4 Fast Attach 36 | 5 4 3 . 2 . 9 5 8 Attach 11 | . . 2 . 2 . 2 . 5 Detach 9 | . . 6 . 1 . 1 . 1 Swap 21 | . 4 2 . 2 . 9 2 2 Drop 27 | . 2 6 . . . 13 3 3 Fire 51 | . . . . . . 6 10 35 Melee 51 | . . . . . . 16 1 34 Ram . | . . . . . . . . . Kick . | . . . . . . . . . Crush 1 | . . . . . 1 . . . Escape Stasis 2 | . . . . . . . . 2 Rewire . | . . . . . . . . . Trap . | . . . . . . . . . Miscellaneous . | . . . . . . . . . Route ------- -11/Scrapyard -10/Materials -9/Materials -9/Mines -9/Exiles (discovered 2 exits: [*Min x2]) -8/Mines -8/Materials (discovered 2 exits: *Sto x2) -8/Storage -7/Factory History --------- Turn | Location | Event 34 | -11/Scrapyard | Discovered new exit (range 15) 67 | -11/Scrapyard | Entered Materials 68 | -10/Materials | Met a group of wandering Federalists 130 | -10/Materials | Discovered new exit (range 13) 223 | -10/Materials | Entered another Materials area 223 | -9/Materials | Evolved 2 slots: Power x1, Utility x1 278 | -9/Materials | Discovered new exit (range 10) 296 | -9/Materials | Entered Mines 297 | -9/Mines | Assembled infested the area 299 | -9/Mines | Deemed a non-threat by the Exiles lab entrance 299 | -9/Mines | Discovered new exit (range 5) 301 | -9/Mines | Entered Exiles 306 | -9/Exiles | Discovered new exit (range 15) 311 | -9/Exiles | Build established: Mutant 316 | -9/Exiles | Met 8R-AWN 321 | -9/Exiles | Met EX-HEX 336 | -9/Exiles | Met EX-DEC 338 | -9/Exiles | Learned location of Zion (-7) 424 | -9/Exiles | Visited The Gauntlet 729 | -9/Exiles | Discovered new exit (range 11) 830 | -9/Exiles | Entered Mines 1013 | -8/Mines | Discovered new exit (range 8) 1067 | -8/Mines | Entered Materials 1067 | -8/Materials | Evolved 2 slots: Propulsion x1, Utility x1 1067 | -8/Materials | Discovered new exit (range 7) 1775 | -8/Materials | Discovered new exit (range 16) 1820 | -8/Materials | Entered Storage 1827 | -8/Storage | Met 01-MTF 2148 | -8/Storage | Repaired Enh. Nuclear Core 2265 | -8/Storage | Assisted by bots powering up and referring to "LRC-V3" 2369 | -8/Storage | Discovered new exit (range 15) 2444 | -8/Storage | Entered Factory 2444 | -7/Factory | Accompanied by 3 allies (01-MTF) 2444 | -7/Factory | Evolved 2 slots: Propulsion x1, Weapon x1 2447 | -7/Factory | 01-MTF left 2604 | -7/Factory | Found Powered Armor 2708 | -7/Factory | Found Powered Armor 2834 | -7/Factory | Repaired Lgt. Treads 2873 | -7/Factory | Repaired Rocket Launcher 2944 | -7/Factory | Repaired Enh. Nuclear Core 3016 | -7/Factory | Repaired Enh. Nuclear Core 4043 | -7/Factory | Garrison activated, responded to threat 4182 | -7/Factory | Core integrity fell below 50% 4214 | -7/Factory | Lost 6 parts (1p1n3u1w) 4272 | -7/Factory | Core integrity fell below 20% 4283 | -7/Factory | System corruption reached 10% 4313 | -7/Factory | Lost 4 parts (1p1u2w) 4320 | -7/Factory | Destroyed by P-60 Hacker with Shock Rifle Last Messages --------------- Imp. Targeting Computer destroyed. Critical hit (Blast). Penetrated by Slug. K-01 Serf cleans the Subcomponent Replicator. Powered Armor destroyed. K-01 Serf cleans the Subcomponent Replicator. Penetrated by Slug. Subcomponent Replicator disabled. K-01 Serf collects debris. System corrupted: Heat flow error (+104). K-01 Serf collects debris. Chain reaction triggered in Lgt. Ion Engine. K-01 Serf destroyed. Powered Hammer destroyed. Lgt. Nuclear Core destroyed. Imp. EM Pulse Cannon destroyed. Hcp. Matter Pod destroyed. System corrupted by crushing effect (+4). System corrupted by crushing effect (+3). System corrupted: Energy discharge (-39). Map ----- +----------------------------------------------------+ | ??????????????????????????"""" # #????? | | ??????????????????????????"""" # #????? | | ?????????????????????????""""" ! # #????? | | ???????????????????????????""" # #????? | | ????????????????????????????? # #????? | | ??????????????""??????????????? # ###### | | ?????????????? ???###########+### | | ??????????????"" ???# | | ??????????????"" ??# | | ???????????? """ ### | | ??????????? | | ??????????????"" | | ??????????????"" p######### | | ???????????? """ # ######+######## | | ??????????? # #?????????????? | | ???????????? """ + #?????????????? | | ?????????????""" # #?????????????? | | ???????????" """ # #?????????????? | | ?????????? #? #?????????????? | | ?????????? ##? #?????????????? | | ?????????? #??? #?????????????? | | ???????????+############ #??? #?????????????? | | ???????????????????????# #???? #?????????????? | | ???????????????????????# ##??? #?????????????? | | ???????????????????????# T#???? #?????????????? | | ???????????????????????# @ #???? #?????????????? | | ???????????????????????# ##?????##?????????????? | | ?????????????????????? #?????????????????????? | | ?????????????????????### ?????????????????????? | | ???????????????????????##+###????????????????????? | | ?????????????????????????????????????????????????? | | ?????????????????????????????????????????????????? | | ?????????????????????????????????????????????????? | | ?????????????????????????????????????????????????? | | ?????????????????????????????????????????????????? | | ?????????????????????????????????????????????????? | | ?????????????????????????????????????????????????? | | ?????????????????????????????????????????????????? | | ?????????????????????????????????????????????????? | | ?????????????????????????????????????????????????? | | ?????????????????????????????????????????????????? | | ?????????????????????????????????????????????????? | | ?????????????????????????????????????????????????? | | ?????????????????????????????????????????????????? | | ?????????????????????????????????????????????????? | | ?????????????????????????????????????????????????? | | ?????????????????????????????????????????????????? | | ?????????????????????????????????????????????????? | | ?????????????????????????????????????????????????? | | ?????????????????????????????????????????????????? | +----------------------------------------------------+ Best States ------------- Heat Dissipation 58 Energy Generation 29 Energy Capacity 500 Matter Stores 500 Matter Capacity 500 Sight Range 16 Terrain Scan Range 16 Terrain Scan Density 85 Armor Coverage 625 Evasion (%) 62 Targeting Accuracy 6 Recoil Reduction 2 Defensive Hacking 10 Item Schematics ----------------- Imp. Shield Generator | -8/Storage | Hacked Robot Schematics ------------------ None Fabricated ------------ Nothing Repaired ---------- Enh. Nuclear Core | 54% | -8/Storage Lgt. Treads | 35% | -7/Factory Rocket Launcher | 50% | -7/Factory Enh. Nuclear Core | 57% | -7/Factory Enh. Nuclear Core | 74% | -7/Factory Studied --------- None Alien Tech Used ----------------- None Achievements -------------- Hackathon Heavy Suspicion I Have A Map? Librarian Overwhelming Troublemaker Well Done Challenges ------------ None Game ------ Seed SwarmActuatorHammer Manual? 0 Play Time 01:10:34 Cumulative 8.1 hours Start 2025.12.04 @ 14:54:33 End 2025.12.04 @ 16:45:04 Sessions 4 Manual Loads 0 Difficulty Rogue Special Mode None Game No. 12 Rogue 12 Adventurer 0 Explorer 0 Win Type - Total 0 Types 0/0/0/0/0/0/0/0/0/0 Lore% 5 Gallery% 11 Achievement% 9 Wizard Run 0 Options --------- Layout 1 ASCII 0 Keyboard 1 Movement Vi Keybinds 0 Fullscreen 1 Font 32/SmallcapsGlow Map View 50x35 Zoom Use 0% Tactical HUD 0 Map Filters NONE Filters NONE Steam 1 RUN: 92b6406d-369d-4123-81cf-43b63d34c4e2